[Event "CZE-ch Amateurs 2022"]
[Site "Luhacovice"]
[Date "2022.03.19"]
[Round "9.10"]
[White "Kratochvil, Josef"]
[Black "Tresnak, Filip"]
[Result "1/2-1/2"]
[ECO "B10"]
[WhiteElo "2200"]
[BlackElo "1931"]
[Annotator "ChessBase"]
[PlyCount "20"]
[EventDate "2022.03.12"]
[EventType "swiss"]
[EventCountry "CZE"]
[SourceTitle "playchess.com"]
[Source "ChessBase"]
[SourceQuality "1"]
[TimeControl "5400+30"]

1. e4 {[%emt 0:00:17]} c6 {[%emt 0:00:12]} 2. c4 {[%emt 0:00:20]} d5 {[%emt 0:00:47]} 3. exd5 {[%emt 0:00:04]} cxd5 {[%emt 0:00:04]} 4. cxd5 {[%emt 0:00:04]} Nf6 {[%emt 0:00:25]} 5. Qa4+ {[%emt 0:00:10]} Nbd7 {[%emt 0:02:22]} 6. Nc3 {[%emt 0:00:14]} g6 {[%emt 0:00:43]} 7. Bc4 {[%emt 0:01:05]} Bg7 {[%emt 0:00:19]} 8. Nf3 {[%emt 0:00:39]} O-O {[%emt 0:00:37]} 9. d3 {[%emt 0:01:03]} a6 {[%emt 0:12:05]} 10. Qa3 {[%emt 0:02:10]} Nb6 {[%emt 0:07:45]} 1/2-1/2

[Event "CZE-ch Amateurs 2022"]
[Site "Luhacovice"]
[Date "2022.03.19"]
[Round "9.11"]
[White "Nemec, Pavel"]
[Black "Plasek, Zdenek"]
[Result "1/2-1/2"]
[ECO "B80"]
[WhiteElo "2223"]
[BlackElo "1914"]
[Annotator "RC"]
[PlyCount "50"]
[EventDate "2022.03.12"]
[EventType "swiss"]
[EventCountry "CZE"]
[SourceTitle "playchess.com"]
[Source "ChessBase"]
[SourceQuality "1"]
[TimeControl "5400+30"]

1. e4 {[%emt 0:00:04]} c5 {[%emt 0:02:17]} 2. Nf3 {[%emt 0:00:08]} d6 {[%emt 0:00:06]} 3. d4 {[%emt 0:00:22]} cxd4 {[%emt 0:00:03]} 4. Nxd4 {[%emt 0:00:11]} Nf6 {[%emt 0:00:07]} 5. Nc3 {[%emt 0:00:06]} a6 {[%emt 0:00:03]} 6. g3 {[%emt 0:00:23]} e6 {[%emt 0:00:26]} 7. Bg2 {[%emt 0:00:11]} Qc7 {[%emt 0:00:18]} 8. O-O {[%emt 0:00:11]} Nc6 {[%emt 0:00:26]} 9. Re1 {[%emt 0:00:21]} Be7 {[%emt 0:00:12]} 10. h3 {[%emt 0:02:33]} O-O {[%emt 0:00:44]} 11. Nde2 {[%emt 0:01:17]} b5 {[%emt 0:02:26]} 12. a3 {[%emt 0:00:38]} Bb7 {[%emt 0:00:07]} 13. g4 {[%emt 0:00:31]} Rfe8 {[%emt 0:04:15]} 14. b3 {[%emt 0:04:57]} Rac8 {[%emt 0:02:21]} 15. Bb2 {[%emt 0:00:12]} b4 {[%emt 0:10:47]} 16. axb4 {[%emt 0:05:36]} Nxb4 {[%emt 0:00:04]} 17. Nd4 {[%emt 0:00:33]} d5 {[%emt 0:01:41]} 18. e5 {[%emt 0:13:01]} Nd7 {[%emt 0:00:05]} 19. Qe2 {[%emt 0:01:23]} Bc5 {[%emt 0:04:01]} 20. Rad1 {[%emt 0:01:26]} Nc6 {[%emt 0:01:12]} 21. Nxc6 {[%emt 0:00:22]} Qxc6 {[%emt 0:00:34]} 22. Na4 {[%emt 0:13:27]} Bb4 {[%emt 0:01:22]} 23. c3 {[%emt 0:00:10]} Ba5 {[%emt 0:00:09]} 24. Qe3 {[%emt 0:03:33]} Nb6 {[%emt 0:01:23]} 25. Nxb6 {[%emt 0:01:34]} Bxb6 {[%emt 0:00:54]} 1/2-1/2

[Event "CZE-ch Amateurs 2022"]
[Site "Luhacovice"]
[Date "2022.03.19"]
[Round "9.12"]
[White "Husek, Martin"]
[Black "Zaza, Martin"]
[Result "1-0"]
[ECO "B78"]
[WhiteElo "2167"]
[BlackElo "1822"]
[Annotator "ChessBase"]
[PlyCount "75"]
[EventDate "2022.03.12"]
[EventType "swiss"]
[EventCountry "CZE"]
[SourceTitle "playchess.com"]
[Source "ChessBase"]
[SourceQuality "1"]
[TimeControl "5400+30"]

1. e4 {[%emt 0:00:08]} c5 {[%emt 0:00:06]} 2. Nf3 {[%emt 0:00:07]} d6 {[%emt 0:01:21]} 3. d4 {[%emt 0:00:11]} cxd4 {[%emt 0:00:05]} 4. Nxd4 {[%emt 0:00:06]} Nf6 {[%emt 0:00:04]} 5. Nc3 {[%emt 0:00:09]} g6 {[%emt 0:01:20]} 6. Be3 {[%emt 0:00:13]} Bg7 {[%emt 0:00:06]} 7. f3 {[%emt 0:00:09]} O-O {[%emt 0:00:07]} 8. Qd2 {[%emt 0:00:02]} Nc6 {[%emt 0:00:09]} 9. Bc4 {[%emt 0:00:06]} Bd7 {[%emt 0:00:40]} 10. O-O-O {[%emt 0:00:08]} Rc8 {[%emt 0:01:23]} 11. Bb3 {[%emt 0:00:08]} Ne5 {[%emt 0:01:14]} 12. Kb1 {[%emt 0:00:09]} Nc4 {[%emt 0:02:54]} 13. Bxc4 {[%emt 0:00:07]} Rxc4 {[%emt 0:00:03]} 14. g4 {[%emt 0:00:10]} Rc8 {[%emt 0:07:59]} 15. h4 {[%emt 0:00:43]} h5 {[%emt 0:00:07]} 16. gxh5 {[%emt 0:01:06]} Nxh5 {[%emt 0:00:06]} 17. Bh6 {[%emt 0:00:52]} a6 {[%emt 0:10:25]} 18. Rdg1 {[%emt 0:01:24]} b5 {[%emt 0:06:55]} 19. Bxg7 {[%emt 0:15:01]} Kxg7 {[%emt 0:00:19]} 20. f4 {[%emt 0:00:51]} e5 {[%emt 0:01:21]} 21. Nf5+ {[%emt 0:01:58]} Bxf5 {[%emt 0:00:11]} 22. exf5 {[%emt 0:00:06]} exf4 {[%emt 0:00:15]} 23. Nd5 {[%emt 0:01:04]} Rc4 {[%emt 0:01:14]} 24. Qd3 {[%emt 0:03:45]} Ng3 {[%emt 0:03:23]} 25. f6+ {[%emt 0:02:26]} Kh6 {[%emt 0:01:50]} 26. b3 {[%emt 0:17:21]} Nxh1 {[%emt 0:00:10]} 27. bxc4 {[%emt 0:00:21]} Ng3 {[%emt 0:00:35]} 28. Qd2 {[%emt 0:00:33]} Nh5 {[%emt 0:00:24]} 29. Nxf4 {[%emt 0:00:17]} Nxf4 {[%emt 0:01:01]} 30. Qxf4+ {[%emt 0:00:08]} Kh7 {[%emt 0:00:18]} 31. h5 {[%emt 0:00:08]} bxc4 {[%emt 0:01:38]} 32. hxg6+ {[%emt 0:00:16]} fxg6 {[%emt 0:00:05]} 33. Qh4+ {[%emt 0:00:43]} Kg8 {[%emt 0:00:07]} 34. Rxg6+ {[%emt 0:00:07]} Kf7 {[%emt 0:00:02]} 35. Rg7+ {[%emt 0:00:58]} Ke6 {[%emt 0:00:06]} 36. Qe4+ {[%emt 0:00:18]} Kxf6 {[%emt 0:00:27]} 37. Rg6+ {[%emt 0:00:10]} Kf7 {[%emt 0:00:04]} 38. Qe6# {[%emt 0:00:07]} 1-0

[Event "CZE-ch Amateurs 2022"]
[Site "Luhacovice"]
[Date "2022.03.19"]
[Round "9.13"]
[White "Zabystrzan, Pavel"]
[Black "Zemkova, Klara"]
[Result "1/2-1/2"]
[ECO "A88"]
[WhiteElo "2162"]
[BlackElo "1724"]
[Annotator "ChessBase"]
[PlyCount "74"]
[EventDate "2022.03.12"]
[EventType "swiss"]
[EventCountry "CZE"]
[SourceTitle "playchess.com"]
[Source "ChessBase"]
[SourceQuality "1"]
[TimeControl "5400+30"]

1. Nf3 {[%emt 0:00:08]} f5 {[%emt 0:00:13]} 2. d4 {[%emt 0:00:48]} Nf6 {[%emt 0:00:27]} 3. c4 {[%emt 0:00:28]} d6 {[%emt 0:00:27]} 4. Nc3 {[%emt 0:00:12]} g6 {[%emt 0:00:14]} 5. g3 {[%emt 0:00:14]} Bg7 {[%emt 0:00:14]} 6. Bg2 {[%emt 0:00:16]} O-O {[%emt 0:00:06]} 7. O-O {[%emt 0:00:25]} c6 {[%emt 0:05:21]} 8. b3 {[%emt 0:14:37]} Qa5 {[%emt 0:03:16]} 9. Qc2 {[%emt 0:06:59]} e5 {[%emt 0:00:33]} 10. dxe5 {[%emt 0:00:13]} dxe5 {[%emt 0:00:08]} 11. e4 {[%emt 0:00:08]} fxe4 {[%emt 0:00:20]} 12. Ng5 {[%emt 0:01:45]} Bf5 {[%emt 0:00:35]} 13. Ngxe4 {[%emt 0:00:31]} Nbd7 {[%emt 0:00:55]} 14. a3 {[%emt 0:08:44]} Qc7 {[%emt 0:01:04]} 15. Bb2 {[%emt 0:01:16]} Nc5 {[%emt 0:00:57]} 16. b4 {[%emt 0:01:30]} Ne6 {[%emt 0:00:44]} 17. Nxf6+ {[%emt 0:01:26]} Bxf6 {[%emt 0:00:26]} 18. Ne4 {[%emt 0:00:27]} Nd4 {[%emt 0:01:37]} 19. Bxd4 {[%emt 0:08:03]} exd4 {[%emt 0:00:09]} 20. Nxf6+ {[%emt 0:00:08]} Rxf6 {[%emt 0:00:08]} 21. Qd2 {[%emt 0:03:11]} Rd8 {[%emt 0:00:59]} 22. c5 {[%emt 0:01:05]} d3 {[%emt 0:02:34]} 23. h3 {[%emt 0:06:39]} Re6 {[%emt 0:01:36]} 24. Rfe1 {[%emt 0:01:18]} Qe7 {[%emt 0:00:34]} 25. Rxe6 {[%emt 0:01:35]} Qxe6 {[%emt 0:00:15]} 26. g4 {[%emt 0:07:56]} Qf6 {[%emt 0:07:38]} 27. Re1 {[%emt 0:05:04]} Be6 {[%emt 0:00:22]} 28. Re4 {[%emt 0:02:26]} Bd5 {[%emt 0:04:05]} 29. Re3 {[%emt 0:02:11]} Bxg2 {[%emt 0:01:22]} 30. Kxg2 {[%emt 0:00:11]} Qd4 {[%emt 0:00:46]} 31. Re7 {[%emt 0:02:48]} Rf8 {[%emt 0:02:01]} 32. Re3 {[%emt 0:00:08]} Qd5+ {[%emt 0:00:35]} 33. Kg1 {[%emt 0:00:49]} Rf3 {[%emt 0:02:04]} 34. Rxf3 {[%emt 0:01:33]} Qxf3 {[%emt 0:01:58]} 35. Qa2+ {[%emt 0:00:23]} Kg7 {[%emt 0:00:48]} 36. Qe6 {[%emt 0:00:57]} Qxh3 {[%emt 0:03:32]} 37. Qd7+ {[%emt 0:00:21]} Kh8 {[%emt 0:02:59]} 1/2-1/2

[Event "CZE-ch Amateurs 2022"]
[Site "Luhacovice"]
[Date "2022.03.19"]
[Round "9.14"]
[White "Fishchuk, Vladyslav"]
[Black "Toman, Jan"]
[Result "0-1"]
[ECO "E73"]
[WhiteElo "1657"]
[BlackElo "2127"]
[Annotator "ChessBase"]
[PlyCount "232"]
[EventDate "2022.03.12"]
[EventType "swiss"]
[EventCountry "CZE"]
[SourceTitle "playchess.com"]
[Source "ChessBase"]
[SourceQuality "1"]
[TimeControl "5400+30"]

1. c4 {[%emt 0:00:06]} Nf6 {[%emt 0:00:19]} 2. Nc3 {[%emt 0:00:07]} g6 {[%emt 0:01:07]} 3. e4 {[%emt 0:00:06]} d6 {[%emt 0:00:10]} 4. d4 {[%emt 0:00:05]} Bg7 {[%emt 0:00:11]} 5. Be2 {[%emt 0:00:07]} O-O {[%emt 0:00:29]} 6. Be3 {[%emt 0:00:04]} e5 {[%emt 0:01:44]} 7. d5 {[%emt 0:00:04]} Nbd7 {[%emt 0:02:43]} 8. g4 {[%emt 0:00:06]} Nc5 {[%emt 0:01:27]} 9. f3 {[%emt 0:00:05]} a5 {[%emt 0:01:36]} 10. h4 {[%emt 0:00:05]} h5 {[%emt 0:00:30]} 11. g5 {[%emt 0:00:05]} Nfd7 {[%emt 0:01:01]} 12. Qd2 {[%emt 0:01:01]} b6 {[%emt 0:03:36]} 13. Nh3 {[%emt 0:01:55]} Ba6 {[%emt 0:01:49]} 14. O-O-O {[%emt 0:04:55]} Qe7 {[%emt 0:01:16]} 15. Kb1 {[%emt 0:00:29]} Bb7 {[%emt 0:02:04]} 16. Nf2 {[%emt 0:01:43]} Rfd8 {[%emt 0:00:24]} 17. Rc1 {[%emt 0:01:56]} Nb8 {[%emt 0:00:37]} 18. Bd3 {[%emt 0:02:16]} Nba6 {[%emt 0:01:14]} 19. Bc2 {[%emt 0:00:21]} Bc8 {[%emt 0:01:18]} 20. Nd3 {[%emt 0:02:05]} Bd7 {[%emt 0:00:44]} 21. Nxc5 {[%emt 0:00:43]} bxc5 {[%emt 0:00:49]} 22. Ba4 {[%emt 0:00:54]} Nb8 {[%emt 0:02:10]} 23. Bxd7 {[%emt 0:01:07]} Nxd7 {[%emt 0:00:08]} 24. Na4 {[%emt 0:07:33]} Rdb8 {[%emt 0:00:34]} 25. Qc2 {[%emt 0:00:45]} Rb7 {[%emt 0:03:39]} 26. Bd2 {[%emt 0:00:37]} Nf8 {[%emt 0:02:03]} 27. Nc3 {[%emt 0:01:12]} Nh7 {[%emt 0:03:07]} 28. Nb5 {[%emt 0:01:00]} f6 {[%emt 0:03:49]} 29. gxf6 {[%emt 0:00:19]} Bxf6 {[%emt 0:00:18]} 30. Rcg1 {[%emt 0:01:43]} Nf8 {[%emt 0:01:41]} 31. Bg5 {[%emt 0:01:37]} Bxg5 {[%emt 0:00:32]} 32. Rxg5 {[%emt 0:00:13]} Kh7 {[%emt 0:02:12]} 33. Rhg1 {[%emt 0:00:53]} Qf6 {[%emt 0:01:07]} 34. Qg2 {[%emt 0:01:02]} Rd8 {[%emt 0:04:38]} 35. Nc3 {[%emt 0:03:26]} Rd7 {[%emt 0:01:04]} 36. Nd1 {[%emt 0:04:08]} Rf7 {[%emt 0:01:14]} 37. Rg3 {[%emt 0:01:47]} Rb8 {[%emt 0:11:03]} 38. Nf2 {[%emt 0:01:57]} Rb4 {[%emt 0:02:24]} 39. Nh3 {[%emt 0:01:06]} Re7 {[%emt 0:01:34]} 40. Ng5+ {[%emt 0:03:03]} Kh8 {[%emt 0:04:37]} 41. Ne6 {[%emt 0:01:46]} Rxe6 {[%emt 0:02:09]} 42. dxe6 {[%emt 0:00:09]} Qxe6 {[%emt 0:00:22]} 43. Qd2 {[%emt 0:03:37]} Kh7 {[%emt 0:01:07]} 44. b3 {[%emt 0:00:43]} Qxc4 {[%emt 0:00:58]} 45. Rc1 {[%emt 0:02:04]} Qf7 {[%emt 0:00:45]} 46. Ka1 {[%emt 0:02:19]} Qf4 {[%emt 0:07:12]} 47. Qxf4 {[%emt 0:00:34]} exf4 {[%emt 0:00:09]} 48. Rg5 {[%emt 0:02:10]} Nd7 {[%emt 0:00:10]} 49. Kb2 {[%emt 0:03:08]} Rd4 {[%emt 0:02:31]} 50. Rd5 {[%emt 0:00:58]} Rxd5 {[%emt 0:06:18]} 51. exd5 {[%emt 0:00:09]} Nb6 {[%emt 0:00:11]} 52. Ka3 {[%emt 0:02:12]} Kg7 {[%emt 0:03:06]} 53. Re1 {[%emt 0:00:26]} Kf7 {[%emt 0:00:59]} 54. Rg1 {[%emt 0:00:34]} Kf6 {[%emt 0:01:12]} 55. Rg5 {[%emt 0:00:30]} Kf7 {[%emt 0:01:17]} 56. Kb2 {[%emt 0:00:34]} Nd7 {[%emt 0:01:13]} 57. Rg1 {[%emt 0:00:28]} Kf6 {[%emt 0:03:51]} 58. Ka3 {[%emt 0:00:31]} Nb6 {[%emt 0:00:18]} 59. Rg5 {[%emt 0:00:09]} Kg7 {[%emt 0:08:15]} 60. Kb2 {[%emt 0:00:11]} c4 {[%emt 0:00:56]} 61. Kc3 {[%emt 0:00:34]} cxb3 {[%emt 0:00:15]} 62. axb3 {[%emt 0:00:54]} a4 {[%emt 0:01:40]} 63. bxa4 {[%emt 0:00:34]} Nxa4+ {[%emt 0:00:05]} 64. Kb4 {[%emt 0:00:40]} Nc5 {[%emt 0:01:13]} 65. Kb5 {[%emt 0:05:45]} Nd3 {[%emt 0:00:03]} 66. Kc6 {[%emt 0:01:19]} Ne5+ {[%emt 0:00:03]} 67. Rxe5 {[%emt 0:04:29]} dxe5 {[%emt 0:00:03]} 68. Kxc7 {[%emt 0:00:09]} e4 {[%emt 0:00:05]} 69. d6 {[%emt 0:00:08]} e3 {[%emt 0:02:31]} 70. d7 {[%emt 0:00:04]} e2 {[%emt 0:00:07]} 71. d8=Q {[%emt 0:00:07]} e1=Q {[%emt 0:00:06]} 72. Qd4+ {[%emt 0:00:11]} Kg8 {[%emt 0:00:44]} 73. Qxf4 {[%emt 0:00:40]} Qe6 {[%emt 0:00:24]} 74. Kd8 {[%emt 0:01:21]} Kg7 {[%emt 0:00:18]} 75. Qg3 {[%emt 0:01:51]} Kf7 {[%emt 0:01:38]} 76. Qc7+ {[%emt 0:00:37]} Kf6 {[%emt 0:00:45]} 77. Qf4+ {[%emt 0:01:08]} Qf5 {[%emt 0:00:14]} 78. Qd6+ {[%emt 0:01:55]} Kg7 {[%emt 0:00:12]} 79. Qg3 {[%emt 0:00:29]} Kf7 {[%emt 0:00:17]} 80. Qc7+ {[%emt 0:00:39]} Ke6 {[%emt 0:00:28]} 81. Qc6+ {[%emt 0:07:39]} Ke5 {[%emt 0:00:13]} 82. Qc7+ {[%emt 0:04:55]} Kd4 {[%emt 0:00:08]} 83. Qb6+ {[%emt 0:03:52]} Kd3 {[%emt 0:00:48]} 84. Qf2 {[%emt 0:00:40]} Qf4 {[%emt 0:00:40]} 85. Kc8 {[%emt 0:01:45]} Qc4+ {[%emt 0:00:40]} 86. Kb7 {[%emt 0:00:59]} Qb3+ {[%emt 0:00:42]} 87. Ka6 {[%emt 0:01:47]} Qc2 {[%emt 0:01:32]} 88. Qg3 {[%emt 0:00:48]} Ke3 {[%emt 0:00:41]} 89. f4+ {[%emt 0:01:51]} Kd4 {[%emt 0:00:06]} 90. Qg1+ {[%emt 0:00:58]} Kd5 {[%emt 0:00:08]} 91. Qg5+ {[%emt 0:01:21]} Qf5 {[%emt 0:00:39]} 92. Qd8+ {[%emt 0:02:41]} Ke4 {[%emt 0:00:11]} 93. Qd6 {[%emt 0:00:30]} Kf3 {[%emt 0:00:40]} 94. Kb6 {[%emt 0:01:44]} Kg4 {[%emt 0:00:42]} 95. Qc6 {[%emt 0:00:49]} Kxh4 {[%emt 0:01:42]} 96. Qf3 {[%emt 0:00:08]} Qe6+ {[%emt 0:00:51]} 97. Kc5 {[%emt 0:00:41]} Qh3 {[%emt 0:00:24]} 98. Qf2+ {[%emt 0:02:38]} Qg3 {[%emt 0:00:15]} 99. Qd4 {[%emt 0:00:27]} Kg4 {[%emt 0:00:34]} 100. Qd1+ {[%emt 0:00:49]} Kxf4 {[%emt 0:00:13]} 101. Qd6+ {[%emt 0:00:04]} Kf3 {[%emt 0:00:27]} 102. Qd5+ {[%emt 0:00:12]} Kg4 {[%emt 0:00:34]} 103. Qe4+ {[%emt 0:00:22]} Kg5 {[%emt 0:00:35]} 104. Qe7+ {[%emt 0:00:06]} Kf5 {[%emt 0:00:15]} 105. Qf7+ {[%emt 0:00:14]} Ke4 {[%emt 0:00:20]} 106. Qd5+ {[%emt 0:00:15]} Ke3 {[%emt 0:00:12]} 107. Qd4+ {[%emt 0:00:06]} Ke2 {[%emt 0:00:13]} 108. Qc4+ {[%emt 0:00:20]} Kf2 {[%emt 0:00:22]} 109. Qc2+ {[%emt 0:00:18]} Kg1 {[%emt 0:00:15]} 110. Qd1+ {[%emt 0:00:24]} Kg2 {[%emt 0:00:41]} 111. Qd5+ {[%emt 0:00:04]} Kh2 {[%emt 0:00:28]} 112. Qd2+ {[%emt 0:00:11]} Kh1 {[%emt 0:00:54]} 113. Qd5+ {[%emt 0:00:37]} Qg2 {[%emt 0:00:10]} 114. Qe5 {[%emt 0:00:14]} h4 {[%emt 0:01:29]} 115. Kc4 {[%emt 0:00:31]} Qg4+ {[%emt 0:00:18]} 116. Kd5 {[%emt 0:00:27]} Qf5 {[%emt 0:00:16]} 0-1

[Event "CZE-ch Amateurs 2022"]
[Site "Luhacovice"]
[Date "2022.03.19"]
[Round "9.15"]
[White "Cupek, Martin"]
[Black "Lang Simon"]
[Result "0-1"]
[ECO "A36"]
[WhiteElo "2108"]
[BlackElo "1812"]
[Annotator "NA"]
[PlyCount "121"]
[EventDate "2022.03.12"]
[EventType "swiss"]
[EventCountry "CZE"]
[SourceTitle "playchess.com"]
[Source "ChessBase"]
[SourceQuality "1"]
[TimeControl "5400+30"]

1. c4 {[%emt 0:00:06]} c5 {[%emt 0:02:01]} 2. Nc3 {[%emt 0:01:22]} Nc6 {[%emt 0:01:17]} 3. g3 {[%emt 0:00:35]} g6 {[%emt 0:01:04]} 4. Bg2 {[%emt 0:01:22]} Bg7 {[%emt 0:01:02]} 5. e3 {[%emt 0:08:01]} e5 {[%emt 0:02:29]} 6. Nge2 {[%emt 0:09:24]} Nge7 {[%emt 0:02:07]} 7. O-O {[%emt 0:00:04]} O-O {[%emt 0:00:52]} 8. Nd5 {[%emt 0:03:30]} d6 {[%emt 0:04:42]} 9. d3 {[%emt 0:04:09]} f5 {[%emt 0:03:23]} 10. Bd2 {[%emt 0:05:49]} Be6 {[%emt 0:02:32]} 11. Bc3 {[%emt 0:05:40]} Rb8 {[%emt 0:03:57]} 12. Qa4 {[%emt 0:02:56]} Qc8 {[%emt 0:06:54]} 13. Nxe7+ {[%emt 0:04:57]} Nxe7 {[%emt 0:00:09]} 14. Qxa7 {[%emt 0:02:13]} d5 {[%emt 0:00:27]} 15. Qa4 {[%emt 0:06:20]} dxc4 {[%emt 0:01:21]} 16. dxc4 {[%emt 0:08:23]} e4 {[%emt 0:00:23]} 17. Rfd1 {[%emt 0:03:07]} Nc6 {[%emt 0:00:55]} 18. Bxg7 {[%emt 0:01:37]} Kxg7 {[%emt 0:00:09]} 19. Nf4 {[%emt 0:01:19]} Ne5 {[%emt 0:00:37]} 20. Nxe6+ {[%emt 0:02:42]} Qxe6 {[%emt 0:00:09]} 21. Bf1 {[%emt 0:01:26]} g5 {[%emt 0:01:25]} 22. Rd5 {[%emt 0:03:30]} f4 {[%emt 0:03:15]} 23. Qc2 {[%emt 0:09:54]} Nf3+ {[%emt 0:02:35]} 24. Kh1 {[%emt 0:02:09]} Rf6 {[%emt 0:00:40]} 25. Bg2 {[%emt 0:02:57]} Rh6 $2 {[%emt 0:03:31]} ({Better is} 25... fxe3 $14 26. fxe3 b6) 26. h4 {[%emt 0:00:27]} fxg3 {[%emt 0:01:52]} 27. fxg3 {[%emt 0:01:02]} gxh4 {[%emt 0:02:37]} 28. g4 {[%emt 0:00:28]} Rf8 {[%emt 0:05:03]} 29. g5 {[%emt 0:02:45]} Rg6 {[%emt 0:00:25]} 30. Rf1 {[%emt 0:00:22]} Qg4 {[%emt 0:02:06]} 31. Bxf3 {[%emt 0:04:09]} Qh3+ {[%emt 0:01:35]} 32. Kg1 {[%emt 0:00:06]} exf3 {[%emt 0:00:15]} 33. Rf2 {[%emt 0:01:20]} Qg3+ {[%emt 0:02:06]} 34. Kf1 {[%emt 0:00:34]} h3 {[%emt 0:00:19]} 35. Qc3+ {[%emt 0:00:08]} Kg8 {[%emt 0:00:13]} 36. Qe5 {[%emt 0:00:10]} Qg2+ {[%emt 0:00:40]} 37. Ke1 {[%emt 0:01:49]} Qg1+ {[%emt 0:00:43]} 38. Rf1 {[%emt 0:00:11]} f2+ {[%emt 0:00:24]} 39. Ke2 {[%emt 0:00:14]} h2 {[%emt 0:00:42]} 40. Qe4 {[%emt 0:01:03]} b6 {[%emt 0:07:35]} 41. Qh4 {[%emt 0:01:25]} Rg7 {[%emt 0:01:21]} 42. a3 {[%emt 0:01:12]} Qg2 {[%emt 0:00:38]} 43. Qh5 {[%emt 0:00:06]} Qe4 {[%emt 0:02:01]} 44. b3 $11 {[%emt 0:00:28]} Qc2+ {[%emt 0:00:27]} 45. Rd2 {[%emt 0:00:02]} Qe4 {[%emt 0:01:16]} 46. Rd3 $2 {[%emt 0:01:03]} Qg2 {[%emt 0:00:27]} 47. Rd5 {[%emt 0:00:21]} Qe4 $2 {[%emt 0:06:21]} (47... Qg3 $19 48. b4 Re7) 48. Qxh2 {[%emt 0:00:11]} Qc2+ {[%emt 0:00:40]} 49. Rd2 {[%emt 0:00:03]} Qxb3 {[%emt 0:00:15]} 50. Qh4 $19 {[%emt 0:01:18]} (50. Rxf2 $17 Qxc4+ 51. Ke1) 50... Re7 {[%emt 0:01:25]} 51. Rd3 {[%emt 0:00:56]} Qb2+ {[%emt 0:01:16]} 52. Rd2 {[%emt 0:00:30]} Qxa3 {[%emt 0:00:28]} 53. Rd3 {[%emt 0:00:32]} Qb2+ {[%emt 0:00:17]} 54. Rd2 {[%emt 0:00:02]} Qe5 {[%emt 0:01:03]} 55. Rd3 {[%emt 0:00:57]} Qb2+ {[%emt 0:03:13]} 56. Rd2 {[%emt 0:00:08]} Qe5 {[%emt 0:01:08]} 57. Rd3 {[%emt 0:00:14]} Ref7 {[%emt 0:00:58]} 58. Rd5 {[%emt 0:00:47]} Qe6 {[%emt 0:02:02]} 59. Rd2 {[%emt 0:00:53]} Rf3 {[%emt 0:00:24]} 60. Rd3 {[%emt 0:00:28]} Rh3 {[%emt 0:00:17]} 61. Rd6 {[%emt 0:00:09]} 0-1

[Event "CZE-ch Amateurs 2022"]
[Site "Luhacovice"]
[Date "2022.03.19"]
[Round "9.16"]
[White "Petras, Milan"]
[Black "Jares, Michal"]
[Result "0-1"]
[ECO "A03"]
[WhiteElo "1848"]
[BlackElo "2160"]
[Annotator "ChessBase"]
[PlyCount "122"]
[EventDate "2022.03.12"]
[EventType "swiss"]
[EventCountry "CZE"]
[SourceTitle "playchess.com"]
[Source "ChessBase"]
[SourceQuality "1"]
[TimeControl "5400+30"]

1. f4 {[%emt 0:05:52]} d5 {[%emt 0:00:14]} 2. b3 {[%emt 0:00:19]} Nf6 {[%emt 0:00:16]} 3. Bb2 {[%emt 0:00:06]} g6 {[%emt 0:00:14]} 4. Nf3 {[%emt 0:00:50]} Bg7 {[%emt 0:00:04]} 5. e3 {[%emt 0:02:55]} O-O {[%emt 0:00:10]} 6. d4 {[%emt 0:01:06]} c5 {[%emt 0:01:15]} 7. Ne5 {[%emt 0:00:47]} Bf5 {[%emt 0:02:13]} 8. Nd2 {[%emt 0:11:13]} Nc6 {[%emt 0:03:30]} 9. Nxc6 {[%emt 0:01:10]} bxc6 {[%emt 0:00:15]} 10. Be2 {[%emt 0:04:49]} Qb6 {[%emt 0:07:03]} 11. O-O {[%emt 0:07:45]} cxd4 {[%emt 0:05:21]} 12. exd4 {[%emt 0:03:19]} c5 {[%emt 0:05:06]} 13. Nf3 {[%emt 0:09:46]} Rac8 {[%emt 0:05:30]} 14. Ne5 {[%emt 0:15:19]} Rfd8 {[%emt 0:01:08]} 15. Kh1 {[%emt 0:04:42]} Be4 {[%emt 0:05:30]} 16. Bf3 {[%emt 0:06:39]} e6 {[%emt 0:01:43]} 17. Rc1 {[%emt 0:07:08]} Qa5 {[%emt 0:06:18]} 18. dxc5 {[%emt 0:05:17]} Qxc5 {[%emt 0:03:38]} 19. Nd3 {[%emt 0:02:59]} Qe3 {[%emt 0:05:27]} 20. Qe2 {[%emt 0:03:17]} Qxe2 {[%emt 0:01:25]} 21. Bxe2 {[%emt 0:00:02]} Rc6 {[%emt 0:03:16]} 22. Nb4 {[%emt 0:01:07]} Rb6 {[%emt 0:01:32]} 23. a3 {[%emt 0:00:01]} d4 {[%emt 0:08:37]} 24. Nd3 {[%emt 0:01:13]} Nd5 {[%emt 0:03:17]} 25. Ne5 {[%emt 0:02:45]} Ne3 {[%emt 0:02:22]} 26. Nc4 {[%emt 0:01:01]} Bxg2+ {[%emt 0:00:49]} 27. Kg1 {[%emt 0:00:11]} Nxc4 {[%emt 0:01:23]} 28. Bxc4 {[%emt 0:01:21]} Bxf1 {[%emt 0:00:09]} 29. Rxf1 {[%emt 0:00:23]} d3 {[%emt 0:04:09]} 30. Bxg7 {[%emt 0:00:04]} d2 {[%emt 0:00:15]} 31. Rd1 {[%emt 0:00:54]} Kxg7 {[%emt 0:00:06]} 32. Kf2 {[%emt 0:00:46]} a5 {[%emt 0:01:52]} 33. Ke3 {[%emt 0:00:30]} Kf6 {[%emt 0:01:53]} 34. Bd3 {[%emt 0:00:28]} e5 {[%emt 0:00:53]} 35. Rxd2 {[%emt 0:01:23]} exf4+ {[%emt 0:00:37]} 36. Kxf4 {[%emt 0:00:01]} Rd4+ {[%emt 0:00:29]} 37. Ke3 {[%emt 0:00:28]} Rh4 {[%emt 0:00:31]} 38. Rf2+ {[%emt 0:00:12]} Ke7 {[%emt 0:01:07]} 39. a4 {[%emt 0:01:02]} f5 {[%emt 0:00:34]} 40. Bb5 {[%emt 0:00:08]} Kf6 {[%emt 0:00:37]} 41. c4 {[%emt 0:00:05]} Re6+ {[%emt 0:01:48]} 42. Kd3 {[%emt 0:00:30]} Rd6+ {[%emt 0:03:45]} 43. Kc2 {[%emt 0:00:27]} Ke5 {[%emt 0:01:11]} 44. b4 {[%emt 0:01:08]} axb4 {[%emt 0:02:10]} 45. Kb3 {[%emt 0:00:01]} Rd1 {[%emt 0:02:23]} 46. Kxb4 {[%emt 0:00:23]} Kd6 {[%emt 0:00:14]} 47. Ra2 {[%emt 0:01:15]} Rb1+ {[%emt 0:03:15]} 48. Ka5 {[%emt 0:00:03]} Kc5 {[%emt 0:02:00]} 49. Rd2 {[%emt 0:00:34]} Rd4 {[%emt 0:00:07]} 50. Re2 {[%emt 0:01:13]} f4 {[%emt 0:02:49]} 51. Re7 {[%emt 0:00:25]} Rd8 {[%emt 0:01:35]} 52. Rc7+ {[%emt 0:00:25]} Kd4 {[%emt 0:01:59]} 53. Rxh7 {[%emt 0:00:37]} Ra8+ {[%emt 0:00:59]} 54. Kb6 {[%emt 0:00:33]} Rxa4 {[%emt 0:00:13]} 55. Kc6 {[%emt 0:00:28]} Rxc4+ {[%emt 0:01:41]} 56. Bxc4 {[%emt 0:00:06]} Kxc4 {[%emt 0:00:01]} 57. Rg7 {[%emt 0:00:42]} f3 {[%emt 0:00:47]} 58. Rf7 {[%emt 0:00:37]} Rf1 {[%emt 0:00:03]} 59. h4 {[%emt 0:00:34]} Kd3 {[%emt 0:01:05]} 60. Kd5 {[%emt 0:00:26]} Ke2 {[%emt 0:00:57]} 61. Rg7 {[%emt 0:00:30]} f2 {[%emt 0:00:30]} 0-1